bitfinex/quotes_SOLUSD_20250617
["timestamp","ask_amount","ask_price","bid_price","bid_amount"]
[1750142852298,3.40452661,152.89,152.86,5.24819436]
[1750142852522,3.40452661,152.89,152.88,5.24819436]
[1750142852721,3.40452661,152.89,152.84,26.28432314]
[1750142852898,3.40452661,152.89,152.88,5.24819436]
[1750142853102,3.40452661,152.89,152.84,26.28432314]
[1750142853301,6.53942293,152.92,152.88,5.24819436]
[1750142853500,16.52407162,152.93,152.86,0.28432314]
[1750142853798,16.52407162,152.93,152.91,5.24819436]
[1750142854210,9.98513034,152.93,152.92,5.24819436]
[1750142854411,9.98513034,152.93,152.88,12.95129436]
[1750142854611,9.98513034,152.93,152.91,5.24819436]
[1750142855036,9.98513034,152.93,152.89,0.28432314]
[1750142855348,9.98513034,152.93,152.92,5.24819436]
[1750142856025,9.98513034,152.93,152.92,5.5325175]
[1750142856430,6.53644818,152.99,152.93,0.28432314]
[1750142856628,33.63644818,152.99,152.93,0.28432314]
[1750142856933,33.63644818,152.99,152.97,5.24819436]
[1750142857238,11.36198766,152.99,152.97,5.24819436]
[1750142857441,6.53644818,152.99,152.97,5.24819436]
[1750142858635,6.53644818,152.99,152.93,0.28432314]
[1750142858833,22.87738549,152.99,152.89,6.54062518]
[1750142859033,5.24819436,152.96,152.88,12.95129436]
[1750142859226,32.32819436,152.96,152.92,5.24819436]
[1750142859424,32.32819436,152.96,152.88,7.7031]
[1750142859638,32.32819436,152.96,152.92,5.24819436]
[1750142859833,27.08,152.96,152.92,5.24819436]
[1750142860231,27.08,152.96,152.9,0.28432314]
[1750142860431,27.08,152.96,152.93,5.24819436]
[1750142860837,6.53808434,152.95,152.93,5.24819436]
[1750142861739,6.53808434,152.95,152.9,0.28432314]
[1750142862335,6.53808434,152.95,152.92,5.24819436]
[1750142863241,6.53808434,152.95,152.94,5.24819436]
[1750142863431,6.53722952,152.97,152.94,5.24819436]
[1750142863627,30.82199012,152.99,152.96,5.24819436]
[1750142863842,6.53684618,152.98,152.97,5.24819436]
[1750142864039,33.73684618,152.98,152.97,5.24819436]
[1750142864634,6.53644308,152.99,152.97,5.24819436]
[1750142864838,5.92,153.0,152.98,5.24819436]
[1750142865140,10.776267,153.04,153.0,0.28432314]
[1750142865366,10.776267,153.04,153.03,5.24819436]
[1750142865923,17.31061038,153.04,153.01,5.24819436]
[1750142867149,27.22,153.03,153.0,5.24819436]
[1750142867345,6.53509345,153.02,153.0,5.24819436]
[1750142869024,6.53509345,153.02,153.0,7.89575239]
[1750142869240,6.53509345,153.02,152.95,33.7543]
[1750142869542,6.53509345,153.02,153.0,7.89575239]
[1750142869734,6.53509345,153.02,153.01,7.89575239]
[1750142870848,33.7547331,153.03,153.01,7.89575239]
[1750142871052,33.7547331,153.03,153.02,7.89575239]
[1750142871537,33.7547331,153.03,153.0,7.89575239]
[1750142871731,10.776267,153.04,153.02,7.89575239]
[1750142871954,44.51050641,153.04,153.03,7.89575239]
[1750142872139,44.51050641,153.04,152.99,44.933972]
[1750142872339,44.51050641,153.04,153.03,7.89575239]
[1750142874534,44.51050641,153.04,153.02,7.89575239]
[1750142874729,7.89575239,153.03,152.95,7.7543]
[1750142874935,27.2,153.02,153.0,7.89575239]
[1750142875135,27.2,153.02,153.01,7.89575239]
[1750142875338,27.2,153.02,153.0,7.89575239]
[1750142876153,35.09575239,153.02,152.96,0.14216157]
[1750142876339,7.89575239,153.01,152.97,7.89575239]
[1750142876537,33.73594771,153.0,152.97,7.89575239]
[1750142880464,33.73594771,153.0,152.98,7.89575239]
[1750142880656,33.73594771,153.0,152.99,7.89575239]
[1750142880886,6.53565166,153.01,152.99,7.89575239]
[1750142881160,5.96,153.03,153.0,7.89575239]
[1750142881360,5.96,153.03,153.02,14.12385239]
[1750142881658,38.47533386,153.07,153.03,0.28432314]
[1750142881957,38.47533386,153.07,153.06,7.89575239]
[1750142882161,11.29533386,153.07,153.06,7.89575239]
[1750142883251,5.96,153.14,153.07,18.64964886]
[1750142883455,7.89575239,153.12,153.07,7.89575239]
[1750142883632,7.89575239,153.1,153.06,7.89575239]
[1750142883837,27.18,153.09,153.07,7.89575239]
[1750142884039,33.71250352,153.09,153.07,7.89575239]
[1750142884263,33.71250352,153.09,153.03,18.933972]
[1750142884477,33.71250352,153.09,153.06,7.89575239]
[1750142884760,33.71250352,153.09,153.07,7.89575239]
[1750142887390,33.71250352,153.09,153.06,7.89575239]
[1750142887589,33.71250352,153.09,153.07,7.89575239]
[1750142888197,33.71250352,153.09,153.08,7.89575239]
[1750142888396,33.71250352,153.09,153.03,51.4684408]
[1750142888562,33.71250352,153.09,153.07,7.89575239]
[1750142888774,33.71250352,153.09,153.03,51.4684408]
[1750142889262,33.71250352,153.09,153.07,7.89575239]
[1750142889985,6.53182069,153.1,153.08,7.89575239]
[1750142890300,27.14,153.09,153.08,7.89575239]
[1750142890987,6.53125204,153.11,153.08,5.25846143]
[1750142891165,27.14,153.1,153.08,5.25846143]
[1750142891582,27.14,153.1,153.09,5.25846143]
[1750142892266,32.39846143,153.1,153.03,26.0]
[1750142892464,5.25846143,153.08,153.04,5.25846143]
[1750142892660,27.14,153.07,153.04,5.25846143]
[1750142893260,6.5333856,153.06,153.04,5.25846143]
[1750142893989,33.67310951,153.07,153.05,5.25846143]
[1750142894373,33.67310951,153.07,153.04,5.25846143]
[1750142894984,33.67310951,153.07,153.02,6.2281]
[1750142895177,33.67310951,153.07,153.04,7.89167332]
[1750142895978,33.67310951,153.07,153.05,7.89167332]
[1750142896973,27.14,153.07,153.06,7.89167332]
[1750142897396,33.67299065,153.07,153.06,7.89167332]
[1750142897784,33.67299065,153.07,153.05,7.89167332]
[1750142899509,27.08,153.08,153.04,7.89167332]
[1750142900270,6.53295877,153.07,153.04,7.89167332]
[1750142900471,27.08,153.06,153.03,0.28432314]
[1750142900687,27.08,153.06,153.05,7.89167332]
[1750142901293,27.08,153.06,153.04,7.89167332]
[1750142901997,27.08,153.06,153.03,7.89167332]
[1750142902203,33.61358068,153.06,153.03,7.89167332]
[1750142902401,33.61358068,153.06,153.04,7.89167332]
[1750142903094,27.08,153.06,153.04,7.89167332]
[1750142903301,27.08,153.06,153.05,7.89167332]
[1750142904287,27.08,153.06,153.03,0.28432314]
[1750142905874,12.51265718,153.08,153.03,6.81893949]
[1750142906105,5.98,153.08,153.06,7.89167332]
[1750142906293,5.98,153.08,153.07,7.89167332]
[1750142906697,5.98,153.08,153.04,6.53402489]
[1750142906900,27.06,153.07,153.02,6.2281]
[1750142907087,27.06,153.07,153.03,7.89167332]
[1750142907288,27.06,153.07,153.04,7.89167332]
[1750142908506,6.5333856,153.06,153.04,7.89167332]
[1750142908809,27.08,153.05,153.04,7.89167332]
[1750142909401,27.08,153.05,153.02,6.2281]
[1750142910405,27.08,153.05,153.04,7.89167332]
[1750142910619,27.08,153.07,153.04,7.89167332]
[1750142910906,5.98,153.08,153.06,7.89167332]
[1750142911114,33.04,153.08,153.07,7.89167332]
[1750142912010,33.04,153.08,153.05,0.28432314]
[1750142912181,33.04,153.08,153.07,7.89167332]
[1750142912383,39.572532,153.08,153.06,7.89167332]
[1750142912996,27.04,153.07,153.04,0.28432314]
[1750142913189,27.04,153.07,153.04,7.89167332]
[1750142913998,34.93167332,153.07,153.02,14.11977332]
[1750142914393,7.89167332,153.05,153.01,7.89167332]
[1750142914701,14.42633972,153.03,152.99,7.89167332]
[1750142914886,27.06,153.02,152.99,5.26477445]
[1750142916421,27.06,153.02,153.0,5.26477445]
[1750142916732,27.06,153.02,153.01,5.26477445]
[1750142917544,6.53295877,153.07,153.01,5.54909759]
[1750142917827,27.08,153.06,153.04,5.26477445]
[1750142918037,6.53295877,153.07,153.04,5.26477445]
[1750142918204,6.53295877,153.07,153.02,0.14216157]
[1750142918205,27.08,153.06,153.05,5.26477445]
[1750142918405,6.53295877,153.07,153.04,5.26477445]
[1750142918606,27.08,153.06,153.04,5.26477445]
[1750142918846,33.61358028,153.06,153.04,5.26477445]
[1750142919038,33.61358028,153.06,153.03,5.26477445]
[1750142919637,38.87835473,153.06,153.02,5.26477445]
[1750142920022,33.61358028,153.06,153.02,5.26477445]
[1750142920334,33.61358028,153.06,153.04,5.26477445]
[1750142921828,33.61358028,153.06,153.03,5.26477445]
[1750142924322,33.61358028,153.06,153.01,0.28432314]
[1750142924631,33.61358028,153.06,153.03,5.26477445]
[1750142925644,11.36501387,153.07,153.03,5.26477445]
[1750142925852,27.02,153.06,153.05,5.26477445]
[1750142927349,33.5533856,153.06,153.01,0.28432314]
[1750142927655,33.5533856,153.06,153.03,5.26477445]
[1750142927956,27.02,153.05,153.02,5.26477445]
[1750142928155,27.02,153.05,153.01,5.26477445]
[1750142928929,32.28477445,153.05,153.01,5.26477445]
[1750142929226,6.53423941,153.04,152.98,6.6114]
[1750142929439,27.02,153.03,153.01,5.26477445]
[1750142929639,27.02,153.03,153.02,5.26477445]
[1750142932571,27.02,153.03,153.01,5.26477445]
[1750142933450,27.02,153.03,152.98,39.43243303]
[1750142933451,27.02,153.03,153.02,5.26477445]
[1750142934251,27.02,153.03,153.0,0.28432314]
[1750142934451,27.02,153.03,153.02,5.26477445]
[1750142937766,38.81947846,153.03,152.98,32.6114]
[1750142937944,5.26477445,153.02,152.98,37.87617445]
[1750142938141,33.55584979,153.01,152.97,1.5765]
[1750142938483,5.26477445,152.99,152.95,5.26477445]
[1750142938775,27.02,152.98,152.95,5.26477445]
[1750142939274,27.02,152.98,152.94,6.2413]
[1750142939576,27.02,152.98,152.95,5.26477445]
[1750142940345,33.55716262,152.98,152.95,5.26477445]
[1750142941387,5.26477445,152.97,152.92,5.26477445]
[1750142941573,27.02,152.96,152.93,5.26477445]
[1750142941954,27.02,152.96,152.94,5.26477445]
[1750142942481,27.02,152.96,152.93,5.26477445]
[1750142942853,27.02,152.96,152.94,5.26477445]
[1750142943545,33.55778641,152.96,152.94,5.26477445]
[1750142944158,33.55778641,152.96,152.93,5.26477445]
[1750142944561,33.55778641,152.96,152.94,5.26477445]
[1750142945074,33.55778641,152.96,152.93,5.26477445]
[1750142945277,43.91304235,153.02,152.95,5.26477445]
[1750142945482,12.47552055,153.01,152.97,5.26477445]
[1750142945654,27.02,153.0,152.97,5.26477445]
[1750142946268,6.53514902,153.02,152.99,5.26477445]
[1750142946564,5.94,153.02,153.0,5.26477445]
[1750142946788,5.94,153.02,153.01,5.26477445]
[1750142946957,32.96,153.02,153.01,5.26477445]
[1750142948174,5.94,153.02,153.01,5.26477445]
[1750142948358,32.96,153.02,153.01,5.26477445]
[1750142948764,5.94,153.02,153.01,5.26477445]
[1750142948960,12.47509345,153.02,153.01,5.26477445]
[1750142949183,39.49509345,153.02,153.01,5.26477445]
[1750142949493,32.96,153.02,153.01,5.26477445]
[1750142949778,32.96,153.02,152.97,6.53703179]
[1750142949779,5.94,153.02,152.97,18.64964886]
[1750142949954,5.94,153.02,152.97,25.18687838]
[1750142950148,5.94,153.02,153.01,5.26477445]
[1750142951375,32.96,153.02,153.01,5.26477445]
[1750142952767,5.94,153.02,153.01,5.26477445]
[1750142955067,5.94,153.02,153.01,7.14889759]
[1750142955385,5.94,153.02,153.01,13.68441814]
[1750142956066,5.92,153.07,153.01,13.68441814]
[1750142956261,27.02,153.06,153.05,5.26477445]
[1750142956485,27.02,153.06,153.04,5.26477445]
[1750142956688,5.92,153.07,153.05,5.26477445]
[1750142956888,5.92,153.07,153.06,5.26477445]
[1750142957067,32.94,153.07,153.06,5.26477445]
[1750142957262,39.47295877,153.07,153.06,5.26477445]
[1750142957482,39.47295877,153.07,153.05,5.26477445]
[1750142957889,27.02,153.06,153.05,5.26477445]
[1750142959094,5.92,153.07,153.05,5.26477445]
[1750142959289,5.92,153.07,153.06,5.26477445]
[1750142959491,32.94,153.07,153.06,5.26477445]
[1750142959675,5.92,153.07,153.06,5.26477445]
[1750142959875,32.94,153.07,153.06,5.26477445]
[1750142962617,5.92,153.07,153.06,5.26477445]
[1750142962909,5.92,153.11,153.06,12.08248319]
[1750142963099,27.02,153.1,153.09,5.26477445]
[1750142963482,5.92,153.11,153.09,5.26477445]
[1750142963711,5.92,153.11,153.1,5.26477445]
[1750142963886,32.94,153.11,153.09,5.26477445]
[1750142964410,32.94,153.11,153.08,5.26477445]
[1750142964607,5.26477445,153.1,153.05,26.0]
[1750142964790,33.55210529,153.09,153.05,5.26477445]
[1750142965401,5.26477445,153.08,153.04,5.26477445]
[1750142965705,27.02,153.07,153.04,5.26477445]
[1750142965894,27.02,153.07,153.05,5.26477445]
[1750142967213,33.55310187,153.07,153.05,5.26477445]
[1750142967695,33.55310187,153.07,153.04,5.26477445]
[1750142968312,38.81787632,153.07,153.02,6.6106]
[1750142968607,5.26477445,153.06,153.01,7.14889759]
[1750142968785,27.0,153.05,153.01,7.14889759]
[1750142969110,32.26477445,153.05,153.01,7.14889759]
[1750142969715,32.26477445,153.05,153.0,5.54909759]
[1750142969894,11.18477445,153.04,153.0,5.26477445]
[1750142970098,27.0,153.03,153.0,5.26477445]
[1750142970305,33.53485204,153.03,152.98,6.2173]
[1750142970505,5.26477445,153.01,152.94,48.98542167]
[1750142970825,27.0,153.0,152.99,5.26477445]
[1750142971190,27.0,153.02,152.99,5.54909759]
[1750142971439,27.0,153.02,153.01,5.26477445]
[1750142971597,27.0,153.03,153.01,5.26477445]
[1750142971800,27.0,153.03,153.02,5.26477445]
[1750142972528,12.45435755,153.04,153.02,5.26477445]
[1750142972705,27.0,153.03,153.02,5.26477445]
[1750142975118,5.26477445,153.07,153.03,0.28432314]
[1750142975119,5.92,153.07,153.03,0.28432314]
[1750142975325,27.0,153.05,153.03,0.28432314]
[1750142975916,5.92,153.07,153.03,0.28432314]
[1750142976118,27.0,153.06,153.03,6.81890947]
[1750142976626,5.92,153.07,153.03,0.28432314]
[1750142976939,27.0,153.06,153.03,6.8188919]
[1750142977121,27.0,153.06,153.05,5.26477445]
[1750142980620,5.92,153.07,153.05,5.26477445]
[1750142980806,32.92,153.07,153.06,5.26477445]
[1750142983142,5.92,153.07,153.06,5.26477445]
[1750142983318,32.92,153.07,153.06,5.26477445]
[1750142985237,5.92,153.07,153.06,5.26477445]
[1750142985439,32.92,153.07,153.06,5.26477445]
[1750142989344,32.92,153.07,153.04,5.26477445]
[1750142989345,39.45298036,153.07,153.04,5.26477445]
[1750142989558,39.45298036,153.07,153.0,6.2522]
[1750142989847,5.26477445,153.05,153.0,5.26477445]
[1750142990017,27.0,153.04,153.0,5.26477445]
[1750142990239,27.0,153.04,153.01,5.26477445]
[1750142990848,27.0,153.04,153.0,26.0]
[1750142991048,6.5346664,153.03,153.0,5.26477445]
[1750142991253,27.0,153.02,153.0,5.26477445]
[1750142992165,33.53510732,153.02,153.0,5.26477445]
[1750142992470,27.0,153.02,153.0,5.26477445]
[1750142993169,27.0,153.02,152.99,26.0]
[1750142993369,5.26477445,153.01,152.96,6.3318]
[1750142993552,5.26477445,152.99,152.95,6.88887445]
[1750142993868,27.0,152.98,152.95,6.88887445]
[1750142994183,33.53680234,152.98,152.94,41.61245226]
[1750142995342,38.80157679,152.98,152.94,41.61245226]
[1750142995844,33.53680234,152.98,152.95,5.26477445]
[1750142996063,33.53680234,152.98,152.94,36.34767781]
[1750142996256,33.53680234,152.98,152.94,41.61245226]
[1750142997275,5.9,153.0,152.95,0.28432314]
[1750142997479,33.53641575,152.99,152.95,0.28432314]
[1750142997651,33.53641575,152.99,152.96,5.26477445]
[1750142998848,27.0,152.99,152.97,5.26477445]
[1750142999766,27.0,152.99,152.98,5.26477445]
[1750143000572,5.9,153.0,152.98,5.26477445]
[1750143000777,27.02,152.99,152.98,5.26477445]
[1750143001085,27.02,152.99,152.97,0.28432314]
[1750143001286,27.02,152.99,152.97,5.54909759]
[1750143002089,27.02,152.99,152.98,5.26477445]
[1750143002254,32.92,153.0,152.98,5.26477445]
[1750143002456,32.92,153.0,152.99,5.26477445]
[1750143003086,5.9,153.0,152.99,5.54909759]
[1750143004682,5.9,153.0,152.97,1.6632]
[1750143004894,27.02,152.99,152.97,31.26477445]
[1750143005185,27.02,152.99,152.97,5.26477445]
[1750143005607,27.02,152.99,152.98,5.26477445]
[1750143005775,12.43594771,153.0,152.98,5.26477445]
[1750143005975,5.9,153.0,152.99,5.26477445]
[1750143006911,32.92,153.0,152.96,0.28432314]
[1750143007084,39.45598229,153.0,152.97,5.26477445]
[1750143008006,39.45598229,153.0,152.98,5.26477445]
[1750143009489,39.45598229,153.0,152.97,5.26477445]
[1750143009685,39.45598229,153.0,152.98,5.26477445]
[1750143009889,5.9,153.0,152.99,5.54909759]
[1750143010097,5.9,153.05,153.01,0.28432314]
[1750143010412,27.02,153.04,153.03,5.26477445]
[1750143010605,5.9,153.05,153.03,5.26477445]
[1750143010777,27.02,153.04,153.03,5.26477445]
[1750143010972,5.9,153.05,153.03,5.26477445]
[1750143011200,27.02,153.04,153.03,5.26477445]
[1750143015109,5.9,153.05,153.03,5.26477445]
[1750143015323,32.9,153.05,153.04,5.26477445]
[1750143016093,32.9,153.05,153.03,5.26477445]
[1750143020003,5.9,153.05,153.04,5.26477445]
[1750143020352,32.9,153.05,153.04,5.26477445]
[1750143020554,5.9,153.05,153.04,5.26477445]
[1750143020934,32.9,153.05,153.04,5.26477445]
[1750143022458,9.42901751,153.1,153.05,0.28432314]
[1750143022638,15.96069615,153.1,153.09,5.26477445]
[1750143022843,42.96069615,153.1,153.08,5.26477445]
[1750143023621,6.53167864,153.1,153.05,6.3154]
[1750143023851,6.53167864,153.1,153.03,18.79181043]
[1750143023852,6.532532,153.08,153.03,0.14216157]
[1750143024077,27.0,153.07,153.03,0.14216157]
[1750143024365,27.0,153.07,153.04,5.26477445]
[1750143025055,27.0,153.07,153.03,5.26477445]
[1750143025259,32.26477445,153.07,153.02,5.26477445]
[1750143025849,32.26477445,153.07,153.01,0.28432314]
[1750143026048,6.5333856,153.06,153.02,5.26477445]
[1750143026241,27.0,153.05,153.02,5.26477445]
[1750143027566,27.0,153.05,153.03,5.26477445]
[1750143028290,47.59384568,153.11,153.04,5.26477445]
[1750143028465,33.53210529,153.09,153.06,5.26477445]
[1750143029463,33.53210529,153.09,153.05,5.26477445]
[1750143030167,38.79687974,153.09,153.05,5.26477445]
[1750143030767,5.26477445,153.08,153.01,25.18505185]
[1750143030993,27.0,153.07,153.04,5.26477445]
[1750143032185,6.53330703,153.07,153.05,5.26477445]
[1750143032392,27.0,153.06,153.02,0.28432314]
[1750143032700,27.0,153.06,153.05,5.26477445]
[1750143033189,6.53267182,153.08,153.05,5.26477445]
[1750143033388,27.0,153.07,153.04,0.28432314]
[1750143033966,12.431828,153.1,153.05,6.1239]
[1750143034167,27.0,153.08,153.05,6.1239]
[1750143034597,27.0,153.08,153.07,5.26477445]
[1750143034964,27.0,153.08,153.0,44.00253252]
[1750143034965,38.79730645,153.08,153.01,6.1239]
[1750143035160,38.79730645,153.08,153.0,1.6629]
[1750143035161,5.26477445,153.04,153.0,5.26477445]
[1750143035378,38.16477445,153.03,152.99,5.26477445]
[1750143035704,5.26477445,153.02,152.98,5.26477445]
[1750143035909,38.16477445,153.03,152.98,5.26477445]
[1750143036414,6.53509345,153.02,152.99,5.26477445]
[1750143037020,11.7998679,153.02,152.98,5.26477445]
[1750143037386,6.53509345,153.02,152.98,5.26477445]
[1750143038391,11.7998679,153.02,152.98,5.26477445]
[1750143039896,39.43479768,153.03,153.0,5.26477445]
[1750143040215,5.9,153.03,153.01,5.26477445]
[1750143040416,5.9,153.03,153.02,5.26477445]
[1750143040622,32.9,153.03,153.02,5.26477445]
[1750143042110,5.9,153.03,153.02,5.26477445]
[1750143042425,5.9,153.03,153.01,5.54909759]
[1750143042797,5.9,153.03,153.02,5.26477445]
[1750143045527,5.9,153.03,153.01,0.28432314]
[1750143045729,5.9,153.03,153.02,5.26477445]
[1750143050215,12.4346664,153.03,153.0,5.26477445]
[1750143050431,27.0,153.02,153.0,5.26477445]
[1750143050944,27.0,153.02,152.99,5.26477445]
[1750143051254,27.0,153.02,152.98,5.26477445]
[1750143051255,32.26477445,153.02,152.98,5.26477445]
[1750143052245,6.53552055,153.01,152.98,5.26477445]
[1750143052445,27.0,153.0,152.98,5.26477445]
[1750143052865,27.0,153.0,152.97,0.28432314]
[1750143053157,27.0,153.0,152.98,5.26477445]
[1750143054774,33.53596103,153.0,152.96,1.81982314]
[1750143054958,33.53596103,153.0,152.97,5.26477445]
[1750143056277,33.53596103,153.0,152.98,5.26477445]
[1750143058171,33.53596103,153.0,152.96,6.80027445]
[1750143058366,38.80073548,153.0,152.96,6.80027445]
[1750143058568,33.53596103,153.0,152.97,5.26477445]
[1750143059275,33.53596103,153.0,152.96,6.80027445]
[1750143059470,38.80073548,153.0,152.96,5.26477445]
[1750143059666,38.80073548,153.0,152.95,37.66127445]
[1750143059864,5.26477445,152.98,152.94,36.34767781]
[1750143060176,27.0,152.97,152.94,5.26477445]
[1750143060384,27.0,152.97,152.93,5.26477445]
[1750143060565,11.16477445,152.96,152.92,5.26477445]
[1750143060767,27.0,152.95,152.92,5.26477445]
[1750143061356,32.22109065,152.95,152.91,6.3264]
[1750143061676,38.75920982,152.95,152.9,5.26477445]
[1750143061880,5.26477445,152.93,152.89,5.26477445]
[1750143062086,27.0,152.92,152.89,5.26477445]
[1750143062555,27.0,152.92,152.88,1.5287]
[1750143062757,27.0,152.92,152.88,6.79347445]
[1750143062975,27.0,152.92,152.88,5.26477445]
[1750143063367,33.53957184,152.92,152.88,5.26477445]
[1750143063588,33.53957184,152.92,152.87,6.1697]
[1750143063791,33.53957184,152.92,152.88,5.26477445]
[1750143064754,38.80434629,152.92,152.84,8.2738]
[1750143064959,5.26477445,152.91,152.87,5.26477445]
[1750143065160,27.0,152.9,152.87,5.26477445]
[1750143065361,27.0,152.9,152.88,5.26477445]
[1750143065663,27.0,152.91,152.89,5.26477445]
[1750143065862,27.0,152.91,152.9,5.26477445]
[1750143066467,27.0,152.91,152.86,44.64964886]
[1750143066665,27.0,152.91,152.88,5.26477445]
[1750143070082,27.0,152.91,152.87,6.82579484]
[1750143070285,27.0,152.91,152.9,5.26477445]
[1750143075277,6.53859294,152.94,152.9,5.26477445]
[1750143075481,27.0,152.92,152.91,5.26477445]
[1750143075681,27.0,152.92,152.89,0.28432314]
[1750143075868,27.0,152.92,152.91,5.26477445]
[1750143076186,27.0,152.92,152.89,0.28432314]
[1750143076396,27.0,152.92,152.91,5.26477445]
[1750143076566,27.0,152.92,152.89,0.28432314]
[1750143076767,27.0,152.92,152.9,5.26477445]
[1750143077200,27.0,152.92,152.91,5.26477445]
[1750143078901,27.0,152.93,152.91,5.26477445]
[1750143079505,21.17801974,152.95,152.92,5.26477445]
[1750143079680,27.0,152.93,152.9,0.28432314]
[1750143079875,14.63978539,152.95,152.91,5.26477445]
[1750143080098,14.63978539,152.95,152.9,0.28432314]
[1750143080099,27.0,152.94,152.92,5.26477445]
[1750143082004,41.63978539,152.95,152.93,0.28432314]
[1750143082198,41.63978539,152.95,152.94,5.26477445]
[1750143082788,14.63978539,152.95,152.94,5.26477445]
[1750143083107,48.19800003,152.95,152.89,0.14216157]
[1750143083312,53.46277448,152.95,152.88,6.54077173]
[1750143083480,48.19800003,152.95,152.91,5.26477445]
[1750143083680,48.19800003,152.95,152.89,0.28432314]
[1750143084004,48.19800003,152.95,152.89,18.933972]
[1750143084005,14.63978539,152.95,152.89,18.933972]
[1750143084181,27.04,152.94,152.93,5.26477445]
[1750143085495,14.63978539,152.95,152.93,5.26477445]
[1750143085805,14.63978539,152.95,152.91,6.53950799]
[1750143085806,14.63978539,152.95,152.94,5.26477445]
[1750143086012,41.67978539,152.95,152.94,5.26477445]
[1750143086693,14.63978539,152.95,152.94,5.26477445]
[1750143088992,14.63978539,152.95,152.93,5.26477445]
[1750143089312,27.02,152.94,152.88,5.26477445]
[1750143089506,5.26477445,152.93,152.88,5.26477445]
[1750143089698,27.02,152.92,152.88,5.26477445]
[1750143090020,33.5594445,152.92,152.88,5.26477445]
[1750143090213,33.5594445,152.92,152.87,7.731]
[1750143090387,38.82421895,152.92,152.88,5.26477445]
[1750143091305,38.82421895,152.92,152.87,6.1245]
[1750143091306,33.5594445,152.92,152.89,5.26477445]
[1750143092313,20.08790776,152.96,152.91,5.26477445]
[1750143092492,27.02,152.95,152.93,5.26477445]
[1750143092813,5.26477445,152.94,152.9,5.26477445]
[1750143092999,27.02,152.93,152.91,5.26477445]
[1750143093617,27.02,152.93,152.92,5.26477445]
[1750143094122,27.02,152.93,152.91,5.26477445]
[1750143094821,27.02,152.93,152.92,5.26477445]
[1750143096101,27.02,152.93,152.91,5.26477445]
[1750143099011,27.02,152.93,152.86,18.64964886]
[1750143099012,31.26477445,152.92,152.84,1.6322]
[1750143099315,5.26477445,152.87,152.83,5.26477445]
[1750143099514,27.0,152.86,152.84,5.26477445]
[1750143099718,27.0,152.86,152.85,5.26477445]
[1750143100214,27.0,152.86,152.85,23.91442331]
[1750143100427,5.9,152.87,152.86,0.28432314]
[1750143100594,5.9,152.87,152.86,5.54909759]
[1750143101297,5.9,152.87,152.86,24.19874645]
[1750143101813,5.9,152.87,152.86,18.933972]
[1750143102118,5.9,152.87,152.86,24.19874645]
[1750143102292,5.9,152.87,152.86,30.74068024]
[1750143103312,27.0,152.88,152.86,30.74068024]
[1750143103485,5.9,152.92,152.89,0.28432314]
[1750143103690,5.9,152.92,152.91,5.26477445]
[1750143103900,32.9,152.92,152.91,5.26477445]
[1750143104306,32.9,152.92,152.9,5.26477445]
[1750143104707,5.9,152.92,152.9,5.26477445]
[1750143104902,27.0,152.91,152.9,5.26477445]
[1750143106022,27.0,152.91,152.89,5.26477445]
[1750143106623,27.0,152.91,152.87,0.28432314]
[1750143106921,27.0,152.91,152.89,5.26477445]
[1750143106922,33.53991496,152.91,152.89,5.26477445]
[1750143107998,27.0,152.9,152.89,5.26477445]
[1750143109396,27.0,152.9,152.89,5.54909759]
[1750143109738,5.9,152.92,152.9,0.28432314]
[1750143109894,17.5844067,152.96,152.92,18.933972]
[1750143109895,14.18790776,152.96,152.92,18.933972]
[1750143110096,14.18790776,152.96,152.95,5.26477445]
[1750143110322,41.18790776,152.96,152.95,5.26477445]
[1750143110715,14.18790776,152.96,152.95,5.26477445]
[1750143111518,14.18790776,152.96,152.93,6.53888458]
[1750143111709,14.18790776,152.96,152.95,5.26477445]
[1750143113004,41.18790776,152.96,152.95,5.26477445]
[1750143113820,14.18790776,152.96,152.95,5.54909759]
[1750143115028,14.18790776,152.96,152.95,30.73683079]
[1750143117005,14.18790776,152.96,152.95,36.00160524]
[1750143117742,51.8,153.05,153.0,0.28432314]
[1750143117914,51.8,153.05,153.04,5.26477445]
[1750143118233,5.9,153.06,153.04,5.26477445]